fUST/lending_fUST_20250717
["ID","MTS","AMOUNT","RATE_DAILY","PERIOD"]
[372619860,1752709844326,-460.0,0.00018899,2]
[372619861,1752709844336,-460.0,0.00018899,2]
[372619862,1752709844346,-460.0,0.00018899,2]
[372619863,1752709844356,-460.0,0.00018899,2]
[372619864,1752709844365,-460.0,0.00018899,2]
[372619865,1752709844378,-460.0,0.00018899,2]
[372619866,1752709844397,-462.98091743,0.00018899,2]
[372619867,1752709844407,-500.0,0.00018899,2]
[372619868,1752709844416,-500.0,0.00018899,2]
[372619869,1752709844426,-460.0,0.000189,2]
[372619870,1752709844436,-460.0,0.000189,2]
[372619871,1752709844445,-498.78556739,0.000189,2]
[372619872,1752709844455,-261.3791605,0.000189,2]
[372619873,1752709844465,-460.0,0.000189,2]
[372619874,1752709844475,-460.0,0.000189,2]
[372619875,1752709844484,-409.16279511,0.000189,2]
[372619876,1752709844494,-460.0,0.000189,2]
[372619877,1752709844504,-460.0,0.000189,2]
[372619878,1752709844514,-491.08115407,0.000189,2]
[372619879,1752709844524,-1139.16770387,0.000189,2]
[372619880,1752709844534,-279.04341226,0.00018935,2]
[372619881,1752709844543,-2474.14755882,0.00018973,2]
[372619882,1752709844553,-312.0,0.00019069,2]
[372619883,1752709844563,-625.43,0.00019071,2]
[372619884,1752709844572,-460.0,0.00019072,2]
[372619885,1752709844582,-1244.85,0.00019072,2]
[372619886,1752709844591,-460.0,0.00019072,2]
[372619887,1752709844601,-460.0,0.00019072,2]
[372619888,1752709844611,-759.6,0.00019072,2]
[372619889,1752709844620,-488.73,0.00019072,2]
[372619890,1752709844629,-1003.13,0.00019072,2]
[372619891,1752709844639,-460.0,0.00019072,2]
[372619892,1752709844648,-460.0,0.00019072,2]
[372619893,1752709844658,-460.0,0.00019072,2]
[372619894,1752709844667,-460.0,0.00019072,2]
[372619895,1752709844677,-460.0,0.00019072,2]
[372619896,1752709844686,-460.0,0.00019073,2]
[372619897,1752709844695,-460.0,0.00019073,2]
[372619898,1752709844705,-460.0,0.00019073,2]
[372619899,1752709844715,-376.74488546,0.00019073,2]
[372619900,1752709844724,-460.0,0.00019073,2]
[372619901,1752709844733,-460.0,0.00019073,2]
[372619902,1752709844743,-460.0,0.00019073,2]
[372619903,1752709844753,-460.0,0.00019073,2]
[372619904,1752709844762,-460.0,0.00019073,2]
[372619905,1752709844772,-460.0,0.00019073,2]
[372619906,1752709844782,-460.0,0.00019073,2]
[372619907,1752709844792,-460.0,0.00019073,2]
[372619908,1752709844802,-460.0,0.00019073,2]
[372619909,1752709844811,-601.73,0.00019073,2]
[372619910,1752709844820,-460.0,0.00019073,2]
[372619911,1752709844831,-460.0,0.00019073,2]
[372619912,1752709844840,-460.0,0.00019073,2]
[372619913,1752709844850,-460.0,0.00019073,2]
[372619914,1752709844859,-460.0,0.00019073,2]
[372619915,1752709844869,-460.0,0.00019073,2]
[372619916,1752709844879,-460.0,0.00019073,2]
[372619917,1752709844889,-460.0,0.00019073,2]
[372619918,1752709844898,-460.0,0.00019073,2]
[372619919,1752709844907,-460.0,0.00019073,2]
[372619920,1752709844917,-460.0,0.00019073,2]
[372619921,1752709844926,-460.0,0.00019073,2]
[372619922,1752709844936,-460.0,0.00019073,2]
[372619923,1752709844945,-460.0,0.00019073,2]
[372619924,1752709844955,-460.0,0.00019073,2]
[372619925,1752709844964,-460.0,0.00019073,2]
[372619926,1752709844974,-1139.16770384,0.00019141,2]
[372619927,1752709844983,-460.0,0.00019169,2]
[372619928,1752709844993,-460.0,0.00019169,2]
[372619929,1752709845002,-460.0,0.00019169,2]
[372619930,1752709845012,-460.0,0.00019169,2]
[372619931,1752709845023,-460.0,0.00019169,2]
[372619932,1752709845032,-1196.18,0.00019169,2]
[372619933,1752709845042,-460.0,0.0001917,2]
[372619934,1752709845142,-460.0,0.0001917,2]
[372619935,1752709845152,-460.0,0.0001917,2]
[372619936,1752709845161,-577.41662643,0.0001917,2]
[372619937,1752709845171,-460.0,0.0001917,2]
[372619938,1752709845182,-460.0,0.0001917,2]
[372619939,1752709845191,-460.0,0.0001917,2]
[372619940,1752709845201,-460.0,0.0001917,2]
[372619941,1752709845210,-460.0,0.0001917,2]
[372619942,1752709845219,-460.0,0.0001917,2]
[372619943,1752709845228,-293.26556853,0.0001917,2]
[372619944,1752709845240,-460.0,0.0001917,2]
[372619945,1752709845252,-416.35997873,0.0001917,2]
[372619946,1752709845262,-460.0,0.0001917,2]
[372619947,1752709845271,-460.0,0.0001917,2]
[372619948,1752709845281,-460.0,0.0001917,2]
[372619949,1752709845291,-546.81645963,0.0001917,2]
[372619950,1752709845305,-460.0,0.0001917,2]
[372619951,1752709845315,-460.0,0.0001917,2]
[372619952,1752709845328,-460.0,0.0001917,2]
[372619953,1752709845338,-460.0,0.0001917,2]
[372619954,1752709845348,-460.0,0.0001917,2]
[372619955,1752709845358,-460.0,0.0001917,2]
[372619956,1752709845368,-460.0,0.0001917,2]
[372619957,1752709845379,-460.0,0.0001917,2]
[372619958,1752709845389,-460.0,0.0001917,2]
[372619959,1752709845398,-224.22990729,0.0001917,2]
[372619960,1752709845408,-460.0,0.0001917,2]
[372619962,1752709845418,-460.0,0.0001917,2]
[372619963,1752709845427,-460.0,0.0001917,2]
[372619964,1752709845437,-460.0,0.0001917,2]
[372619965,1752709845446,-371.2662023,0.0001917,2]
[372619966,1752709845456,-667.39,0.0001917,2]
[372619967,1752709845466,-460.0,0.0001917,2]
[372619968,1752709845476,-155.88706673,0.0001917,2]
[372619969,1752709845485,-460.0,0.0001917,2]
[372619970,1752709845495,-460.0,0.0001917,2]
[372619971,1752709845505,-1139.64,0.0001917,2]
[372619972,1752709845514,-460.0,0.0001917,2]
[372619973,1752709845526,-460.0,0.0001917,2]
[372619974,1752709845536,-460.0,0.0001917,2]
[372619975,1752709845546,-471.89,0.0001917,2]
[372619976,1752709845555,-460.0,0.0001917,2]
[372619977,1752709845565,-183.568206,0.0001917,2]
[372619978,1752709845574,-460.0,0.0001917,2]
[372619979,1752709845583,-2059.05,0.0001917,2]
[372619980,1752709845593,-569.46,0.00019171,2]
[372619981,1752709845602,-500.0,0.00019171,2]
[372619982,1752709845613,-460.0,0.00019172,2]
[372619983,1752709845624,-460.0,0.00019172,2]
[372619984,1752709845635,-587.38,0.00019172,2]
[372619985,1752709845645,-460.0,0.00019173,2]
[372619986,1752709845655,-188.29,0.00019173,2]
[372619987,1752709845666,-496.33,0.00019173,2]
[372619988,1752709845676,-500.0,0.00019173,2]
[372619989,1752709845686,-460.0,0.00019174,2]
[372619990,1752709845696,-460.0,0.00019174,2]
[372619991,1752709845706,-460.0,0.00019174,2]
[372619992,1752709845716,-460.0,0.00019174,2]
[372619993,1752709845726,-460.0,0.00019174,2]
[372619994,1752709845736,-460.0,0.00019174,2]
[372619995,1752709845746,-500.0,0.00019178,2]
[372619996,1752709845756,-500.0,0.00019178,2]
[372619997,1752709845767,-500.0,0.00019178,2]
[372619998,1752709845777,-500.0,0.00019178,2]
[372619999,1752709845787,-225.93072635,0.00019178,2]
[372620000,1752709845797,-2814.51619806,0.00019178,2]
[372620001,1752709845807,-296.9484918,0.00019178,2]
[372620002,1752709845817,-207.012938,0.00019178,2]
[372620003,1752709845827,-5000.0,0.00019179,2]
[372620004,1752709845836,-504.4641522,0.00019221,2]
[372620005,1752709845846,-1000.0,0.00019221,2]
[372620006,1752709845856,-500.0,0.00019272,2]
[372620007,1752709845866,-1000.0,0.00019321,2]
[372620008,1752709845876,-1000.0,0.00019321,2]
[372620009,1752709845886,-500.0,0.00019329,2]
[372620010,1752709845896,-500.0,0.00019329,2]
[372620011,1752709845906,-507.0,0.00019329,2]
[372620012,1752709845916,-100000.0,0.00019329,2]
[372620013,1752709845925,-625.43,0.00019345,2]
[372620015,1752709845940,-1244.85,0.00019346,2]
[372620016,1752709845950,-460.0,0.00019346,2]
[372620017,1752709845960,-460.0,0.00019346,2]
[372620018,1752709845969,-759.6,0.00019346,2]
[372620019,1752709845979,-1003.13,0.00019346,2]
[372620020,1752709845988,-460.0,0.00019346,2]
[372620021,1752709845997,-460.0,0.00019346,2]
[372620022,1752709846007,-460.0,0.00019346,2]
[372620023,1752709846016,-460.0,0.00019347,2]
[372620025,1752709846027,-460.0,0.00019347,2]
[372620026,1752709846036,-460.0,0.00019347,2]
[372620027,1752709846046,-460.0,0.00019347,2]
[372620028,1752709846055,-368.54,0.00019347,2]
[372620029,1752709846065,-460.0,0.00019347,2]
[372620030,1752709846074,-460.0,0.00019347,2]
[372620031,1752709846084,-225.98,0.00019347,2]
[372620032,1752709846094,-460.0,0.00019347,2]
[372620033,1752709846104,-460.0,0.00019347,2]
[372620034,1752709846113,-601.73,0.00019347,2]
[372620035,1752709846123,-460.0,0.00019347,2]
[372620036,1752709846134,-460.0,0.00019347,2]
[372620037,1752709846144,-460.0,0.00019347,2]
[372620038,1752709846156,-460.0,0.00019347,2]
[372620039,1752709846166,-460.0,0.00019347,2]
[372620040,1752709846176,-460.0,0.00019347,2]
[372620041,1752709846186,-460.0,0.00019347,2]
[372620042,1752709846198,-460.0,0.00019347,2]
[372620043,1752709846208,-486.08767153,0.00019347,2]
[372620044,1752709846217,-460.0,0.00019347,2]
[372620045,1752709846227,-460.0,0.00019347,2]
[372620046,1752709846237,-460.0,0.00019347,2]
[372620047,1752709846251,-460.0,0.00019347,2]
[372620048,1752709846260,-460.0,0.00019347,2]
[372620049,1752709846271,-460.0,0.00019347,2]
[372620050,1752709846280,-195.6451407,0.00019373,2]
[372620051,1752709846291,-500.0,0.00019373,2]
[372620052,1752709846301,-500.0,0.00019373,2]
[372620053,1752709846311,-500.0,0.00019373,2]
[372620054,1752709846322,-500.0,0.00019373,2]
[372620055,1752709846333,-500.0,0.00019373,2]
[372620056,1752709846342,-584.00273374,0.00019373,2]
[372620057,1752709846353,-500.0,0.00019373,2]
[372620058,1752709846364,-500.0,0.00019373,2]
[372620059,1752709846375,-503.04303697,0.00019373,2]
[372620060,1752709846385,-501.83571431,0.00019373,2]
[372620061,1752709846395,-500.0,0.00019373,2]
[372620062,1752709846405,-500.0,0.00019373,2]
[372620063,1752709846415,-500.0,0.00019373,2]
[372620064,1752709846424,-500.0,0.00019373,2]
[372620065,1752709846434,-1139.16770384,0.00019383,2]
[372620066,1752709846443,-460.0,0.00019443,2]
[372620067,1752709846453,-187.88648209,0.00019443,2]
[372620068,1752709848164,-1520.44,0.00018523,2]
[372620069,1752709848173,-460.0,0.00018523,2]
[372620070,1752709848183,-460.0,0.00018524,2]
[372620071,1752709848192,-460.0,0.00018621,2]
[372620072,1752709848202,-1520.44,0.00018797,2]
[372620073,1752709848212,-460.0,0.00018799,2]
[372620074,1752709848221,-1520.44,0.00019071,2]
[372620075,1752709848231,-1128.48754549,0.00019345,2]
[372620076,1752709848249,-391.95245451,0.00019345,2]
[372620077,1752709848259,-272.11351791,0.00019443,2]
[372620078,1752709848268,-460.0,0.00019443,2]
[372620079,1752709848280,-460.0,0.00019443,2]
[372620080,1752709848291,-1196.18,0.00019443,2]
[372620081,1752709848300,-460.0,0.00019444,2]
[372620082,1752709848310,-460.0,0.00019444,2]
[372620083,1752709848323,-340.1754407,0.00019444,2]
[372620084,1752709848367,-364.02007373,0.00018523,2]
[372620085,1752709848377,-460.0,0.00018798,2]
[372620086,1752709848387,-460.0,0.00019072,2]
[372620087,1752709848396,-460.0,0.00019346,2]
[372620088,1752709848407,-83.90678296,0.00019444,2]
[372620089,1752709848416,-460.0,0.00019444,2]
[372620090,1752709848426,-460.0,0.00019444,2]
[372620091,1752709848435,-460.0,0.00019444,2]
[372620092,1752709848445,-460.0,0.00019444,2]
[372620093,1752709848455,-460.0,0.00019444,2]
[372620094,1752709848465,-460.0,0.00019444,2]
[372620095,1752709848475,-460.0,0.00019444,2]
[372620096,1752709848484,-460.0,0.00019444,2]
[372620097,1752709848493,-460.0,0.00019444,2]
[372620098,1752709848503,-460.0,0.00019444,2]
[372620099,1752709848512,-460.0,0.00019444,2]
[372620100,1752709848522,-477.77,0.00019444,2]
[372620101,1752709848531,-460.0,0.00019444,2]
[372620102,1752709848541,-460.0,0.00019444,2]
[372620103,1752709848551,-460.0,0.00019444,2]
[372620104,1752709848560,-460.0,0.00019444,2]
[372620105,1752709848570,-667.39,0.00019444,2]
[372620106,1752709848579,-460.0,0.00019444,2]
[372620107,1752709848588,-460.0,0.00019444,2]
[372620108,1752709848598,-1139.64,0.00019444,2]
[372620109,1752709848607,-460.0,0.00019444,2]
[372620110,1752709848617,-471.89,0.00019444,2]
[372620111,1752709848627,-517.48163774,0.00019444,2]
[372620112,1752709848636,-460.0,0.00019444,2]
[372620113,1752709848645,-2059.05,0.00019444,2]
[372620114,1752709848655,-569.46,0.00019445,2]
[372620115,1752709848665,-460.0,0.00019446,2]
[372620116,1752709848674,-460.0,0.00019447,2]
[372620117,1752709848684,-161.1661856,0.00019448,2]
[372620118,1752710007930,1100.0,0.00017746,2]
[372620144,1752710363803,371.541818,0.00013699,2]
[372620175,1752710832278,-677.63149172,0.00018422,2]
[372620184,1752710948236,-300.0,0.00018421,2]
[372620185,1752710948260,-522.36850828,0.00018422,2]
[372620186,1752710948282,-1200.0,0.00018422,2]
[372620187,1752710948304,-200.0,0.00018422,2]
[372620188,1752710948329,-500.0,0.00018422,2]
[372620189,1752710948351,-292.83191825,0.00018422,2]
[372620190,1752710948373,-300.0,0.00018423,2]
[372620191,1752710948396,-300.0,0.00018423,2]
[372620192,1752710948418,-460.0,0.00018423,2]
[372620193,1752710948440,-2861.27,0.00018423,2]
[372620194,1752710948461,-460.0,0.00018423,2]
[372620195,1752710948484,-560.84510845,0.00018423,2]
[372620196,1752710948506,-460.0,0.00018423,2]
[372620197,1752710948527,-455.0435308,0.00018423,2]
[372620198,1752710948548,-460.0,0.00018423,2]
[372620199,1752710948568,-460.0,0.00018423,2]
[372620200,1752710948592,-6077.55,0.00018423,2]
[372620201,1752710948612,-460.0,0.00018423,2]
[372620202,1752710948634,-460.0,0.00018423,2]
[372620203,1752710948657,-460.0,0.00018423,2]
[372620204,1752710948679,-4041.9,0.00018423,2]
[372620205,1752710948699,-460.0,0.00018423,2]
[372620206,1752710948720,-964.8,0.00018423,2]
[372620207,1752710948741,-460.0,0.00018423,2]
[372620208,1752710948763,-460.0,0.00018423,2]
[372620209,1752710948785,-460.0,0.00018423,2]
[372620210,1752710948806,-460.0,0.00018423,2]
[372620211,1752710948827,-460.0,0.00018423,2]
[372620212,1752710948851,-2654.26,0.00018423,2]
[372620213,1752710948873,-2447.8,0.00018423,2]
[372620214,1752710948898,-460.0,0.00018423,2]
[372620215,1752710948920,-460.0,0.00018423,2]
[372620216,1752710948943,-460.0,0.00018423,2]
[372620217,1752710948967,-460.0,0.00018424,2]
[372620218,1752710948988,-460.0,0.00018424,2]
[372620219,1752710949010,-460.0,0.00018424,2]
[372620220,1752710949031,-500.0,0.00018424,2]
[372620221,1752710949052,-460.0,0.00018424,2]
[372620222,1752710949073,-460.0,0.00018424,2]
[372620223,1752710949094,-460.0,0.00018424,2]
[372620224,1752710949115,-460.0,0.00018424,2]
[372620225,1752710949136,-460.0,0.00018424,2]
[372620226,1752710949157,-460.0,0.00018424,2]
[372620227,1752710949177,-184.22711808,0.00018424,2]
[372620228,1752710949197,-539.22838783,0.00018424,2]
[372620229,1752710949218,-267.12146662,0.00018424,2]
[372620230,1752710949238,-461.77587469,0.00018424,2]
[372620231,1752710949259,-397.1327924,0.00018424,2]
[372620232,1752710949280,-460.0,0.00018424,2]
[372620233,1752710949303,-460.0,0.00018424,2]
[372620234,1752710949324,-460.0,0.00018424,2]
[372620235,1752710949347,-460.0,0.00018424,2]
[372620236,1752710949369,-460.0,0.00018424,2]
[372620237,1752710949389,-460.0,0.00018424,2]
[372620238,1752710949411,-609.11,0.00018424,2]
[372620239,1752710949435,-460.0,0.00018424,2]
[372620240,1752710949456,-460.0,0.00018424,2]
[372620241,1752710949478,-460.0,0.00018424,2]
[372620242,1752710949498,-460.0,0.00018424,2]
[372620243,1752710949522,-466.18940997,0.00018424,2]
[372620244,1752710949543,-460.0,0.00018424,2]
[372620245,1752710949567,-460.0,0.00018424,2]
[372620246,1752710949590,-460.0,0.00018424,2]
[372620247,1752710949611,-460.0,0.00018424,2]
[372620248,1752710949633,-460.0,0.00018424,2]
[372620249,1752710949662,-460.0,0.00018424,2]
[372620250,1752710949702,-460.0,0.00018424,2]
[372620251,1752710949731,-460.0,0.00018424,2]
[372620252,1752710949895,-460.0,0.00018424,2]
[372620253,1752710949919,-460.0,0.00018424,2]
[372620254,1752710949943,-2757.54,0.00018424,2]
[372620255,1752710949966,-460.0,0.00018424,2]
[372620256,1752710949987,-460.0,0.00018424,2]
[372620257,1752710950011,-549.71,0.00018424,2]
[372620258,1752710950032,-460.0,0.00018424,2]
[372620259,1752710950054,-460.0,0.00018424,2]
[372620260,1752710950076,-460.0,0.00018424,2]
[372620261,1752710950097,-460.0,0.00018424,2]
[372620262,1752710950118,-460.0,0.00018424,2]
[372620263,1752710950142,-1769.39,0.00018424,2]
[372620264,1752710950164,-460.0,0.00018424,2]
[372620265,1752710950187,-617.66,0.00018424,2]
[372620266,1752710950208,-460.0,0.00018424,2]
[372620267,1752710950229,-460.0,0.00018424,2]
[372620268,1752710950250,-460.0,0.00018424,2]
[372620269,1752710950273,-460.0,0.00018424,2]
[372620270,1752710950296,-460.0,0.00018424,2]
[372620271,1752710950318,-460.0,0.00018424,2]
[372620272,1752710950339,-460.0,0.00018424,2]
[372620273,1752710950360,-460.0,0.00018424,2]
[372620274,1752710950382,-584.69,0.00018424,2]
[372620275,1752710950404,-460.0,0.00018424,2]
[372620276,1752710950425,-460.0,0.00018424,2]
[372620277,1752710950447,-460.0,0.00018424,2]
[372620278,1752710950470,-463.92,0.00018424,2]
[372620279,1752710950491,-460.0,0.00018424,2]
[372620280,1752710950514,-263.41507884,0.00018424,2]
[372620281,1752710950540,-460.0,0.00018424,2]
[372620282,1752710950563,-460.0,0.00018424,2]
[372620283,1752710950585,-460.0,0.00018424,2]
[372620284,1752710950606,-504.85,0.00018424,2]
[372620285,1752710950631,-460.0,0.00018424,2]
[372620286,1752710950652,-460.0,0.00018424,2]
[372620287,1752710950675,-1281.57,0.00018424,2]
[372620288,1752710950695,-579.43765627,0.00018425,2]
[372620289,1752710950716,-460.0,0.00018425,2]
[372620290,1752710950737,-460.0,0.00018425,2]
[372620291,1752710950760,-460.0,0.00018425,2]
[372620292,1752710950780,-460.0,0.00018425,2]
[372620293,1752710950803,-460.0,0.00018425,2]
[372620294,1752710950825,-532.5516962,0.00018425,2]
[372620295,1752710950849,-460.0,0.00018425,2]
[372620296,1752710950873,-460.0,0.00018425,2]
[372620297,1752710950894,-460.0,0.00018425,2]
[372620298,1752710950916,-461.11871174,0.00018425,2]
[372620299,1752710950936,-427.06258271,0.00018425,2]
[372620300,1752710950958,-460.0,0.00018425,2]
[372620301,1752710950980,-460.0,0.00018425,2]
[372620302,1752710951004,-485.46806303,0.00018425,2]
[372620303,1752710951025,-460.0,0.00018425,2]
[372620304,1752710951048,-460.0,0.00018425,2]
[372620305,1752710951069,-460.0,0.00018425,2]
[372620306,1752710951090,-460.0,0.00018425,2]
[372620307,1752710951110,-460.0,0.00018425,2]
[372620308,1752710951131,-460.0,0.00018425,2]
[372620309,1752710951153,-644.49,0.00018425,2]
[372620310,1752710951174,-460.0,0.00018425,2]
[372620311,1752710951197,-441.6717135,0.00018425,2]
[372620312,1752710951219,-460.0,0.00018425,2]
[372620313,1752710951240,-460.0,0.00018425,2]
[372620314,1752710951263,-1427.43,0.00018425,2]
[372620315,1752710951285,-460.0,0.00018425,2]
[372620316,1752710951306,-253.73547133,0.00018425,2]
[372620317,1752710951329,-621.81,0.00018425,2]
[372620318,1752710951354,-4553.65,0.00018425,2]
[372620319,1752710951376,-460.0,0.00018425,2]
[372620320,1752710951400,-460.0,0.00018425,2]
[372620321,1752710951421,-460.0,0.00018425,2]
[372620322,1752710951444,-1270.18,0.00018425,2]
[372620323,1752710951466,-460.0,0.00018425,2]
[372620324,1752710951489,-2274.58,0.00018425,2]
[372620325,1752710951513,-460.0,0.00018425,2]
[372620326,1752710951537,-170.0157086,0.00018426,2]
[372620365,1752711032289,-460.0,0.00018422,2]
[372620366,1752711032299,-300.0,0.00018422,2]
[372620367,1752711032309,-1200.0,0.00018422,2]
[372620368,1752711032321,-83.86551762,0.00018422,2]
[372620370,1752711032332,-376.13448238,0.00018422,2]
[372620371,1752711032341,-460.0,0.00018423,2]
[372620373,1752711032351,-460.0,0.00018423,2]
[372620375,1752711032360,-774.83,0.00018423,2]
[372620377,1752711032371,-2051.72,0.00018423,2]
[372620379,1752711032380,-2825.91,0.00018423,2]
[372620381,1752711032390,-933.86709513,0.00018423,2]
[372620384,1752711032399,-556.76,0.00018423,2]
[372620386,1752711032409,-460.0,0.00018423,2]
[372620388,1752711032418,-460.0,0.00018424,2]
[372620390,1752711032427,-460.0,0.00018424,2]
[372620392,1752711032437,-460.0,0.00018424,2]
[372620394,1752711032446,-617.63,0.00018424,2]
[372620396,1752711032456,-460.0,0.00018424,2]
[372620398,1752711032466,-460.0,0.00018424,2]
[372620400,1752711032476,-460.0,0.00018424,2]
[372620402,1752711032487,-460.0,0.00018424,2]
[372620404,1752711032497,-664.97,0.00018424,2]
[372620406,1752711032509,-461.18811205,0.00018424,2]
[372620408,1752711032519,-460.0,0.00018424,2]
[372620410,1752711032529,-460.0,0.00018424,2]
[372620411,1752711032539,-302.26479282,0.00018424,2]
[372620416,1752711032573,-157.73520718,0.00018424,2]
[372620418,1752711032582,-460.0,0.00018424,2]
[372620420,1752711032592,-460.0,0.00018424,2]
[372620421,1752711032602,-460.0,0.00018424,2]
[372620423,1752711032611,-460.0,0.00018424,2]
[372620425,1752711032620,-478.73958392,0.00018425,2]
[372620480,1752711038276,436.95928,0.00027,120]
[372620485,1752711040483,-460.0,0.00018422,2]
[372620486,1752711040493,-183.34041608,0.00018425,2]
[372620487,1752711040503,-2705.35,0.00018425,2]
[372620488,1752711040512,-460.0,0.00018425,2]
[372620489,1752711040522,-465.51,0.00018425,2]
[372620490,1752711040532,-25400.29508392,0.00018426,2]
[372620491,1752711040543,-2209.36726407,0.00018426,2]
[372620579,1752711046287,-460.0,0.00018422,2]
[372620580,1752711046297,-59.47999996,0.00018424,2]
[372620581,1752711046308,-400.52000004,0.00018424,2]
[372620582,1752711046319,-460.0,0.00018424,2]
[372620583,1752711046332,-322.92314404,0.00018424,2]
[372620584,1752711046344,-332.4411603,0.00018424,2]
[372620585,1752711046356,-39.54569566,0.00018424,2]
[372620586,1752711046365,-614.91430434,0.00018425,2]
[372620587,1752711046377,-524.94624002,0.00018425,2]
[372620588,1752711046399,-438.30177485,0.00018425,2]
[372620589,1752711046410,-503.83,0.00018425,2]
[372620590,1752711046420,-2370.97768079,0.00018425,2]
[372620591,1752711046429,-6689.47186321,0.00018426,2]
[372620607,1752711390539,352.964727,0.00013699,2]
[372620621,1752711794533,-171.61079016,0.00018222,2]
[372620622,1752711794557,-70.46911824,0.00018223,2]
[372620627,1752712028138,-171.61079016,0.00018221,2]
[372620628,1752712028159,-171.61079015,0.00018222,2]
[372620629,1752712028180,-171.61079015,0.00018223,2]
[372620630,1752712028203,-1200.0,0.00018321,2]
[372620631,1752712028223,-83.12385459,0.00018321,2]
[372620732,1752712232447,-1116.87614541,0.00018321,2]
[372620734,1752712232457,-300.0,0.00018321,2]
[372620735,1752712232469,-1200.0,0.00018321,2]
[372620738,1752712232479,-7.54081668,0.00018322,2]
[372620754,1752712238325,-828.10455385,0.00018322,2]
[372620755,1752712238335,-30.37777022,0.00018322,2]
[372620759,1752712239929,-199.77291389,0.00018322,2]
[372620760,1752712239948,-269.84931589,0.00018322,2]
[372620761,1752712239960,-200.0,0.00018322,2]
[372620762,1752712239971,-500.0,0.00018322,2]
[372620763,1752712239980,-500.0,0.00018322,2]
[372620764,1752712239990,-233.74003007,0.00018322,2]
[372620765,1752712240002,-460.0,0.00018322,2]
[372620766,1752712240011,-463.0276002,0.00018322,2]
[372620767,1752712240020,-460.0,0.00018322,2]
[372620768,1752712240030,-460.0,0.00018322,2]
[372620769,1752712240042,-460.0,0.00018322,2]
[372620770,1752712240052,-460.0,0.00018322,2]
[372620771,1752712240062,-460.0,0.00018322,2]
[372620772,1752712240072,-460.0,0.00018322,2]
[372620773,1752712240081,-460.0,0.00018322,2]
[372620774,1752712240091,-460.0,0.00018322,2]
[372620775,1752712240100,-460.0,0.00018322,2]
[372620777,1752712240110,-460.0,0.00018322,2]
[372620778,1752712240119,-460.0,0.00018322,2]
[372620779,1752712240128,-460.0,0.00018322,2]
[372620780,1752712240138,-460.0,0.00018323,2]
[372620781,1752712240149,-460.0,0.00018323,2]
[372620782,1752712240158,-460.0,0.00018323,2]
[372620783,1752712240168,-246.54,0.00018323,2]
[372620784,1752712240181,-460.0,0.00018323,2]
[372620785,1752712240191,-460.0,0.00018323,2]
[372620786,1752712240200,-460.0,0.00018323,2]
[372620787,1752712240209,-460.0,0.00018323,2]
[372620788,1752712240219,-460.0,0.00018323,2]
[372620789,1752712240229,-460.0,0.00018323,2]
[372620790,1752712240239,-460.0,0.00018323,2]
[372620791,1752712240248,-460.0,0.00018323,2]